{"text_format":"3","workbook":"xlsx","n_sheets":2,"sheets":["Список преподавателя"," Данные списка"],"not_rendered":{"defined_names":6},"read":"whole","date_system":"1900"}

{"sheet":"Список преподавателя","index":0,"n_rows":10,"n_cols":10,"rows_kept":10,"merged":[[0,1,0,2],[0,4,0,8],[2,9,6,9]]}
[null,"Список преподавателя",null,"Данные списка","В этой ячейке представлено цветовое обозначение состояний: «Не начато» — стиль «Обычный», «Выполняется» — RGB (91, 133, 49), «Крайний срок сегодня» — RGB (118, 88, 0), «Приостановлено» — RGB (109, 66, 111), «Завершено» — зачеркнуто, «Отменено» — RGB (191, 191, 191), «Просрочено» — RGB (191, 33, 28)."]
[null,"ЭЛЕМЕНТ","КАТЕГОРИЯ","ДАТА НАЧАЛА","КРАЙНИЙ СРОК","ЧИСЛО ОСТАВШИХСЯ ДНЕЙ","СОСТОЯНИЕ","ЗАМЕТКИ"]
[null,"Очистить ящики","Офис",{"$f":"DATE(YEAR(TODAY()),MONTH(TODAY())-1,6)","v":"2018-04-06"},{"$f":"DATE(YEAR(TODAY()),MONTH(TODAY())-1,16)","v":"2018-04-16"},{"$f":"IFERROR(IF(COUNT(Список[[#This Row],[ДАТА НАЧАЛА]]:Список[[#This Row],[КРАЙНИЙ СРОК]])<>2,\"\",IF(OR(Список[[#This Row],[СОСТОЯНИЕ]]=\"Завершено\",Список[[#This Row],[СОСТОЯНИЕ]]=\"Отменено\",Список[[#This Row],[СОСТОЯНИЕ]]=\"Приостановлено\"),\"\",Список[[#This Row],[КРАЙНИЙ СРОК]]-TODAY())),\"\")","v":""},"Завершено",null,null,"В этой ячейке находится срез состояния. Чтобы отфильтровать список по состоянию, выберите его в срезе. Нажмите и удерживайте клавишу CTRL, чтобы выбрать несколько вариантов."]
[null,"Заказать наклейки","Учебные принадлежности",{"$f":"DATE(YEAR(TODAY()),MONTH(TODAY())-1,11)","v":"2018-04-11"},{"$f":"DATE(YEAR(TODAY()),MONTH(TODAY())-1,21)","v":"2018-04-21"},{"$f":"IFERROR(IF(COUNT(Список[[#This Row],[ДАТА НАЧАЛА]]:Список[[#This Row],[КРАЙНИЙ СРОК]])<>2,\"\",IF(OR(Список[[#This Row],[СОСТОЯНИЕ]]=\"Завершено\",Список[[#This Row],[СОСТОЯНИЕ]]=\"Отменено\",Список[[#This Row],[СОСТОЯНИЕ]]=\"Приостановлено\"),\"\",Список[[#This Row],[КРАЙНИЙ СРОК]]-TODAY())),\"\")","v":""},"Завершено"]
[null,"Помыть и натереть воском полы","Другое",{"$f":"DATE(YEAR(TODAY()),MONTH(TODAY()-1),DAY(TODAY())-25)","v":"2018-04-16"},{"$f":"DATE(YEAR(TODAY()),MONTH(TODAY())-1,26)","v":"2018-04-26"},{"$f":"IFERROR(IF(COUNT(Список[[#This Row],[ДАТА НАЧАЛА]]:Список[[#This Row],[КРАЙНИЙ СРОК]])<>2,\"\",IF(OR(Список[[#This Row],[СОСТОЯНИЕ]]=\"Завершено\",Список[[#This Row],[СОСТОЯНИЕ]]=\"Отменено\",Список[[#This Row],[СОСТОЯНИЕ]]=\"Приостановлено\"),\"\",Список[[#This Row],[КРАЙНИЙ СРОК]]-TODAY())),\"\")","v":""},"Завершено"]
[null,"Создать наклейки с именами","Учебные принадлежности",{"$f":"DATE(YEAR(TODAY()),MONTH(TODAY())-1,21)","v":"2018-04-21"},{"$f":"DATE(YEAR(TODAY()),MONTH(TODAY())-1,1)","v":"2018-04-01"},{"$f":"IFERROR(IF(COUNT(Список[[#This Row],[ДАТА НАЧАЛА]]:Список[[#This Row],[КРАЙНИЙ СРОК]])<>2,\"\",IF(OR(Список[[#This Row],[СОСТОЯНИЕ]]=\"Завершено\",Список[[#This Row],[СОСТОЯНИЕ]]=\"Отменено\",Список[[#This Row],[СОСТОЯНИЕ]]=\"Приостановлено\"),\"\",Список[[#This Row],[КРАЙНИЙ СРОК]]-TODAY())),\"\")","v":""},"Приостановлено"]
[null,"Письменные отчеты за четверть","Оценка",{"$f":"DATE(YEAR(TODAY()),MONTH(TODAY())-1,26)","v":"2018-04-26"},{"$f":"TODAY()-5","v":"2018-05-06"},{"$f":"IFERROR(IF(COUNT(Список[[#This Row],[ДАТА НАЧАЛА]]:Список[[#This Row],[КРАЙНИЙ СРОК]])<>2,\"\",IF(OR(Список[[#This Row],[СОСТОЯНИЕ]]=\"Завершено\",Список[[#This Row],[СОСТОЯНИЕ]]=\"Отменено\",Список[[#This Row],[СОСТОЯНИЕ]]=\"Приостановлено\"),\"\",Список[[#This Row],[КРАЙНИЙ СРОК]]-TODAY())),\"\")","v":-5},"Просрочено"]
[null,"Отправка напоминания о разрешении от родителей по электронной почте","Телефонные звонки",{"$f":"DATE(YEAR(TODAY()),MONTH(TODAY()),1)","v":"2018-05-01"},{"$f":"TODAY()","v":"2018-05-11"},{"$f":"IFERROR(IF(COUNT(Список[[#This Row],[ДАТА НАЧАЛА]]:Список[[#This Row],[КРАЙНИЙ СРОК]])<>2,\"\",IF(OR(Список[[#This Row],[СОСТОЯНИЕ]]=\"Завершено\",Список[[#This Row],[СОСТОЯНИЕ]]=\"Отменено\",Список[[#This Row],[СОСТОЯНИЕ]]=\"Приостановлено\"),\"\",Список[[#This Row],[КРАЙНИЙ СРОК]]-TODAY())),\"\")","v":""},"Отменено"]
[null,"Устный доклад об успеваемости","Офис",{"$f":"DATE(YEAR(TODAY()),MONTH(TODAY()),7)","v":"2018-05-07"},{"$f":"DATE(YEAR(TODAY()),MONTH(TODAY()),17)","v":"2018-05-17"},{"$f":"IFERROR(IF(COUNT(Список[[#This Row],[ДАТА НАЧАЛА]]:Список[[#This Row],[КРАЙНИЙ СРОК]])<>2,\"\",IF(OR(Список[[#This Row],[СОСТОЯНИЕ]]=\"Завершено\",Список[[#This Row],[СОСТОЯНИЕ]]=\"Отменено\",Список[[#This Row],[СОСТОЯНИЕ]]=\"Приостановлено\"),\"\",Список[[#This Row],[КРАЙНИЙ СРОК]]-TODAY())),\"\")","v":6},"Выполняется"]
[null,"Наточить карандаши","Учебные принадлежности",{"$f":"DATE(YEAR(TODAY()),MONTH(TODAY()),11)","v":"2018-05-11"},{"$f":"DATE(YEAR(TODAY()),MONTH(TODAY()),10)","v":"2018-05-10"},{"$f":"IFERROR(IF(COUNT(Список[[#This Row],[ДАТА НАЧАЛА]]:Список[[#This Row],[КРАЙНИЙ СРОК]])<>2,\"\",IF(OR(Список[[#This Row],[СОСТОЯНИЕ]]=\"Завершено\",Список[[#This Row],[СОСТОЯНИЕ]]=\"Отменено\",Список[[#This Row],[СОСТОЯНИЕ]]=\"Приостановлено\"),\"\",Список[[#This Row],[КРАЙНИЙ СРОК]]-TODAY())),\"\")","v":-1},"Выполняется"]

{"sheet":" Данные списка","index":1,"n_rows":13,"n_cols":3,"rows_kept":13}
[null,"Данные списка","Список преподавателя"]
[null,"Категория"]
[null,"Офис"]
[null,"Учебные принадлежности"]
[null,"Необходимые покупки"]
[null,"Телефонные звонки"]
[null,"Новые идеи"]
[null,"Оценка"]
[null,"Команда"]
[null,"Решение конфликтов"]
[null,"Компьютер"]
[null,"Личные"]
[null,"Другое"]